bitfinex-derivatives/quotes_SOLF0:USTF0_20240912
["timestamp","ask_amount","ask_price","bid_price","bid_amount"]
[1726155796506,2.0975,134.43,134.39,3.3485]
[1726155796507,13.5075,134.43,134.39,3.3485]
[1726155796713,13.5075,134.43,134.4,3.3483]
[1726155797208,13.5075,134.43,134.4,3.77390075]
[1726155797209,2.0975,134.43,134.4,3.77390075]
[1726155797404,2.0975,134.43,134.38,11.41]
[1726155798014,2.0975,134.43,134.41,3.3479]
[1726155798208,2.0975,134.43,134.4,3.68648166]
[1726155798412,11.41,134.44,134.38,11.41]
[1726155798737,2.2097,134.45,134.39,11.41]
[1726155799814,2.2097,134.45,134.43,3.3475]
[1726155800403,2.2097,134.45,134.44,3.3473]
[1726155800603,2.2097,134.45,134.41,11.41]
[1726155800807,2.2097,134.45,134.42,3.6433301]
[1726155801007,2.2097,134.45,134.43,3.3475]
[1726155801412,2.2097,134.45,134.41,11.41]
[1726155801618,2.2097,134.45,134.43,3.3474]
[1726155801818,2.2097,134.45,134.42,3.77938712]
[1726155802517,2.2097,134.45,134.41,11.41]
[1726155802913,2.0861,134.46,134.45,3.3471]
[1726155803107,6.6853,134.63,134.44,11.41]
[1726155803108,11.41,134.5,134.44,11.41]
[1726155803313,11.41,134.51,134.44,11.41]
[1726155803511,11.41,134.51,134.48,3.3462]
[1726155803917,11.41,134.51,134.46,11.41]
[1726155804111,4.1894,134.52,134.47,11.41]
[1726155806229,4.1894,134.52,134.5,3.3458]
[1726155806517,2.0977,134.56,134.47,17.86]
[1726155807224,2.0977,134.56,134.49,17.86]
[1726155807914,2.0977,134.56,134.52,3.3452]
[1726155808719,2.0977,134.56,134.51,3.3455]
[1726155809318,19.9577,134.56,134.5,7.04274291]
[1726155809518,19.9577,134.56,134.5,3.3458]
[1726155809921,19.9577,134.56,134.5,6.97658004]
[1726155810125,19.9577,134.56,134.49,3.346]
[1726155810727,17.86,134.54,134.48,3.3463]
[1726155810928,2.0977,134.56,134.42,18.2543]
[1726155810929,17.86,134.52,134.42,18.2543]
[1726155811429,5.4352,134.51,134.46,3.3466]
[1726155811723,5.4352,134.51,134.46,3.71431727]
[1726155811918,5.4352,134.51,134.42,18.2543]
[1726155812114,3.3459,134.5,134.42,17.86]
[1726155812320,5.5534,134.5,134.42,17.86]
[1726155812522,2.2075,134.5,134.42,17.86]
[1726155812723,2.2075,134.5,134.47,3.3465]
[1726155813920,2.2075,134.5,134.46,7.0525675]
[1726155814120,2.2075,134.5,134.46,3.3468]
[1726155814324,5.5534,134.5,134.46,3.3468]
[1726155816124,3.3462,134.49,134.45,6.99772873]
[1726155816419,3.3462,134.49,134.45,3.347]
[1726155816622,3.3462,134.49,134.44,7.02655752]
[1726155816817,3.3462,134.49,134.41,17.86]
[1726155817213,23.4135,134.5,134.46,3.3468]
[1726155817624,2.2075,134.5,134.46,3.3468]
[1726155818429,5.5535,134.5,134.46,3.3468]
[1726155819527,3.3461,134.49,134.46,3.3468]
[1726155819728,3.3461,134.49,134.45,6.97447285]
[1726155819929,3.3461,134.49,134.45,3.347]
[1726155820122,23.4134,134.5,134.41,17.86]
[1726155820627,23.4134,134.5,134.46,3.3466]
[1726155821328,3.3461,134.49,134.44,3.3471]
[1726155821533,3.3461,134.49,134.41,17.86]
[1726155822827,24.4875,134.5,134.39,17.86]
[1726155823029,17.86,134.48,134.39,17.86]
[1726155823226,17.86,134.48,134.44,3.3473]
[1726155823431,21.2064,134.48,134.44,3.3473]
[1726155823637,24.4875,134.5,134.43,3.74386434]
[1726155823638,20.0675,134.5,134.43,3.74386434]
[1726155823933,3.3462,134.49,134.45,3.3469]
[1726155824136,3.3462,134.49,134.45,7.01527721]
[1726155824737,3.3462,134.49,134.45,3.3469]
[1726155825924,42.3475,134.5,134.39,17.86]
[1726155826533,3.3461,134.49,134.45,3.3469]
[1726155827828,3.3464,134.48,134.45,3.3469]
[1726155829535,3.3469,134.46,134.37,17.86]
[1726155829931,3.3469,134.46,134.42,3.3477]
[1726155830133,11.43,134.43,134.42,7.11675912]
[1726155830925,11.43,134.45,134.42,7.11675912]
[1726155831140,11.43,134.45,134.42,3.3477]
[1726155831337,11.43,134.43,134.4,3.3482]
[1726155831841,11.43,134.43,134.4,7.04957597]
[1726155832140,21.2072,134.45,134.4,7.04957597]
[1726155833245,3.3473,134.44,134.4,7.04957597]
[1726155833634,17.86,134.43,134.34,18.2545]
[1726155833836,22.2038,134.43,134.34,18.2545]
[1726155834247,4.3438,134.43,134.36,17.86]
[1726155835644,4.3438,134.43,134.39,3.3483]
[1726155835845,4.3438,134.43,134.4,3.69439071]
[1726155836145,7.6915,134.43,134.39,3.3483]
[1726155836538,4.3438,134.43,134.4,3.3483]
[1726155836736,4.3438,134.43,134.34,18.2545]
[1726155837142,4.3438,134.43,134.37,3.3488]
[1726155837343,4.3438,134.43,134.34,18.2545]
[1726155837742,3.3479,134.42,134.34,18.2545]
[1726155838145,3.3479,134.42,134.33,3.70037174]
[1726155838146,17.86,134.42,134.33,3.70037174]
[1726155838445,17.86,134.42,134.36,3.3491]
[1726155838644,17.86,134.42,134.33,3.66825385]
[1726155838845,3.3482,134.41,134.36,3.3491]
[1726155839047,3.3482,134.41,134.37,3.69094561]
[1726155839343,3.3482,134.41,134.37,7.03994561]
[1726155839732,3.3484,134.4,134.32,17.86]
[1726155839938,3.3484,134.4,134.32,21.57669891]
[1726155840340,3.3484,134.4,134.36,3.3492]
[1726155840739,3.3486,134.39,134.35,3.3495]
[1726155841341,17.86,134.42,134.36,3.3493]
[1726155841544,26.6238,134.43,134.36,3.3493]
[1726155841747,17.86,134.42,134.36,3.3493]
[1726155842048,3.3483,134.41,134.36,3.3493]
[1726155842255,17.86,134.42,134.36,3.3493]
[1726155842552,3.3485,134.4,134.36,3.3493]
[1726155844053,3.3486,134.39,134.35,3.3494]
[1726155844247,40.14,134.42,134.31,0.2609]
[1726155844446,40.14,134.42,134.31,3.94634426]
[1726155845248,3.3485,134.4,134.35,3.3494]
[1726155845845,3.3485,134.4,134.36,3.3492]
[1726155846246,3.3482,134.41,134.31,3.94634426]
[1726155846454,3.3482,134.41,134.36,3.3491]
[1726155847260,3.3482,134.41,134.37,3.3491]
[1726155847755,3.3479,134.42,134.38,3.3486]
[1726155847959,4.3438,134.43,134.39,3.6566942]
[1726155848157,4.3438,134.43,134.34,17.86]
[1726155848361,3.3479,134.42,134.38,3.3487]
[1726155848562,3.3479,134.42,134.38,7.01841794]
[1726155849252,7.6915,134.43,134.38,7.01841794]
[1726155849460,4.3438,134.43,134.38,3.3487]
[1726155849959,3.348,134.42,134.38,7.06921491]
[1726155850459,4.3438,134.43,134.39,3.3484]
[1726155850655,4.3438,134.43,134.38,3.72051491]
[1726155850851,4.3438,134.43,134.34,17.86]
[1726155851045,4.3438,134.43,134.4,3.3481]
[1726155851245,4.3438,134.43,134.34,17.86]
[1726155851449,7.6915,134.43,134.39,3.3484]
[1726155851654,4.3438,134.43,134.4,3.63457102]
[1726155851855,4.3438,134.43,134.34,17.86]
[1726155852249,15.7738,134.43,134.37,11.43]
[1726155852455,11.43,134.41,134.35,11.43]
[1726155852860,11.43,134.41,134.39,3.3484]
[1726155853153,11.43,134.41,134.39,7.14537217]
[1726155853956,11.43,134.41,134.4,3.3483]
[1726155855563,15.7738,134.43,134.4,3.3483]
[1726155856154,15.7738,134.43,134.41,3.3481]
[1726155857163,15.7738,134.43,134.4,7.02798749]
[1726155857368,15.7738,134.43,134.4,3.3483]
[1726155857859,11.43,134.41,134.39,7.08622321]
[1726155858064,11.43,134.41,134.39,3.3485]
[1726155858562,11.43,134.41,134.39,7.0486488]
[1726155859665,11.43,134.41,134.39,3.3485]
[1726155859865,11.43,134.41,134.38,3.3487]
[1726155860552,11.43,134.41,134.38,7.0752625]
[1726155860752,11.43,134.4,134.37,3.349]
[1726155862759,11.43,134.39,134.37,3.349]
[1726155863268,11.43,134.39,134.36,3.3492]
[1726155864760,11.43,134.39,134.33,11.43]
[1726155865671,11.43,134.38,134.31,15.11544426]
[1726155865866,11.43,134.38,134.31,11.43]
[1726155866166,11.43,134.38,134.35,3.3494]
[1726155866972,11.43,134.36,134.25,7.429]
[1726155867275,11.43,134.35,134.29,11.43]
[1726155867766,11.43,134.36,134.33,3.3499]
[1726155867966,11.43,134.36,134.32,3.80666179]
[1726155868168,11.43,134.36,134.3,11.43]
[1726155868471,11.43,134.35,134.29,11.43]
[1726155868667,11.43,134.35,134.32,3.3502]
[1726155869370,11.43,134.34,134.19,6.7071]
[1726155869568,11.43,134.3,134.24,11.43]
[1726155869766,11.43,134.3,134.24,15.23406461]
[1726155869966,11.43,134.31,134.25,11.43]
[1726155870168,1.9429,134.33,134.26,11.43]
[1726155870374,13.3729,134.33,134.26,15.10639395]
[1726155870680,11.43,134.33,134.26,15.10639395]
[1726155870970,11.43,134.33,134.3,3.3508]
[1726155871167,11.43,134.33,134.26,15.10639395]
[1726155872767,11.43,134.33,134.29,3.3509]
[1726155873180,11.43,134.33,134.26,15.10639395]
[1726155873474,11.43,134.33,134.29,3.3508]
[1726155873673,11.43,134.33,134.26,15.10639395]
[1726155873870,14.7803,134.33,134.26,15.10639395]
[1726155874079,14.7803,134.33,134.28,3.3511]
[1726155874468,11.43,134.32,134.28,3.3511]
[1726155875170,11.43,134.3,134.26,3.67639395]
[1726155875370,11.43,134.3,134.24,11.43]
[1726155875669,11.43,134.3,134.24,15.23379746]
[1726155876277,11.43,134.3,134.26,3.3516]
[1726155876471,11.43,134.3,134.24,15.23379746]
[1726155877079,11.43,134.3,134.24,3.80379746]
[1726155877271,11.43,134.3,134.23,11.43]
[1726155877471,11.43,134.3,134.27,3.3515]
[1726155878082,1.7928,134.31,134.26,11.43]
[1726155878381,1.7928,134.31,134.19,7.429]
[1726155878382,1.7928,134.31,134.25,11.43]
[1726155878770,1.7928,134.31,134.27,3.3514]
[1726155878970,11.43,134.3,134.27,7.14505552]
[1726155879275,11.43,134.3,134.27,3.3514]
[1726155880377,1.7928,134.31,134.26,15.22700647]
[1726155880968,1.7928,134.31,134.29,3.3509]
[1726155881677,1.7928,134.31,134.27,3.3514]
[1726155881879,1.7928,134.31,134.26,11.43]
[1726155882075,1.7928,134.31,134.26,15.11083997]
[1726155882278,1.7928,134.31,134.28,3.3512]
[1726155882581,1.7928,134.31,134.26,15.11083997]
[1726155882875,1.7928,134.31,134.29,3.3511]
[1726155883782,1.7928,134.31,134.28,3.3512]
[1726155884082,13.2228,134.31,134.28,3.3512]
[1726155886675,13.2228,134.31,134.26,3.68083997]
[1726155886676,11.43,134.3,134.27,3.3514]
[1726155887475,7.1024568,134.3,134.16,139.70811447]
[1726155887676,11.43,134.3,134.09,139.70811447]
[1726155887881,11.43,134.3,134.24,11.43]
[1726155888078,11.43,134.3,134.24,15.14388144]
[1726155888586,16.5735,134.31,134.27,3.3514]
[1726155891380,3.3508,134.3,134.26,3.3517]
[1726155891690,11.43,134.3,134.24,15.14388144]
[1726155891887,14.7809,134.3,134.26,3.3517]
[1726155892488,11.43,134.3,134.26,3.3517]
[1726155892794,11.43,134.3,134.27,3.3514]
[1726155893293,11.43,134.3,134.26,3.3517]
[1726155893987,11.43,134.3,134.25,10.781]
[1726155894188,11.43,134.3,134.25,7.429]
[1726155894387,11.43,134.28,134.24,3.71388144]
[1726155894587,11.43,134.28,134.24,3.3522]
[1726155894894,11.43,134.28,134.24,7.0400165]
[1726155895791,14.7814,134.28,134.24,7.0400165]
[1726155896184,11.43,134.28,134.24,7.0400165]
[1726155896380,3.7328,134.31,134.26,3.3517]
[1726155896584,11.43,134.29,134.24,7.429]
[1726155896781,14.7813,134.29,134.24,10.7811]
[1726155897188,11.43,134.28,134.24,14.54032]
[1726155898400,11.43,134.28,134.25,3.3521]
[1726155900394,3.7328,134.31,134.2,11.43]
[1726155900395,11.43,134.26,134.2,11.43]
[1726155900599,11.43,134.26,134.21,7.429]
[1726155900792,11.43,134.26,134.23,3.3524]
[1726155900991,11.43,134.26,134.22,3.72895873]
[1726155901196,11.43,134.26,134.21,7.429]
[1726155901394,11.43,134.26,134.21,18.859]
[1726155901593,1.8787,134.27,134.24,3.3523]
[1726155901904,1.8787,134.27,134.23,18.859]
[1726155902289,3.7328,134.31,134.25,11.43]
[1726155902498,3.7328,134.31,134.27,11.43]
[1726155902888,3.7328,134.31,134.29,3.3511]
[1726155903090,3.7328,134.31,134.27,15.15886405]
[1726155903292,3.7328,134.31,134.28,3.3513]
[1726155903497,15.1628,134.31,134.27,7.429]
[1726155903891,11.43,134.3,134.24,11.43]
[1726155904095,11.43,134.3,134.18,6.7077]
[1726155904292,11.43,134.3,134.22,11.43]
[1726155904293,11.43,134.29,134.22,11.43]
[1726155904496,11.43,134.29,134.22,15.06947858]
[1726155904704,1.8376,134.3,134.25,11.43]
[1726155904900,1.8376,134.3,134.26,11.43]
[1726155905091,1.8376,134.3,134.26,18.859]
[1726155906101,13.2676,134.3,134.25,7.429]
[1726155906605,1.8376,134.3,134.27,3.3513]
[1726155906798,1.8376,134.3,134.27,7.15007867]
[1726155906997,1.8376,134.3,134.25,18.859]
[1726155907198,1.8376,134.3,134.27,3.3515]
[1726155907393,13.2676,134.3,134.27,3.3515]
[1726155907603,13.2676,134.3,134.25,22.66671522]
[1726155907809,13.2676,134.3,134.26,10.7807]
[1726155908492,1.8376,134.3,134.27,3.3515]
[1726155909004,1.8376,134.3,134.28,3.3512]
[1726155909503,22.28,134.28,134.0,2.95752678]
[1726155909707,1.8376,134.3,133.95,22.40354305]
[1726155909708,22.28,134.02,133.95,22.40354305]
[1726155909894,22.28,134.02,133.94,32.37900831]
[1726155909895,22.28,134.02,133.9,13.81962558]
[1726155910091,22.28,134.0,133.9,10.02977687]
[1726155910304,10.35155327,134.16,133.9,10.02977687]
[1726155910512,17.92,134.01,133.9,10.02977687]
[1726155910707,17.92,134.07,133.9,10.02977687]
[1726155910708,17.92,133.99,133.9,10.02977687]
[1726155910908,21.74795184,133.98,133.9,10.02977687]
[1726155911112,21.74795184,133.97,133.91,3.3606]
[1726155911406,21.74904642,133.96,133.9,10.02977687]
[1726155911608,28.25359265,134.01,133.9,10.02977687]
[1726155911811,3.73342645,134.0,133.9,10.02977687]
[1726155912103,3.73342645,133.99,133.93,3.36]
[1726155912294,23.28,134.01,133.9,10.02977687]
[1726155912802,1.0,134.01,133.9,38.70977687]
[1726155913199,22.28,134.03,133.9,38.70977687]
[1726155914213,22.28,134.03,133.97,3.359]
[1726155914402,22.28,134.03,133.9,38.70977687]
[1726155914600,22.28,134.06,133.95,28.68]
[1726155914906,22.28,134.06,133.95,32.36888557]
[1726155915309,22.28,134.06,133.95,28.68]
[1726155915507,22.28,134.07,133.95,28.68]
[1726155915708,22.28,134.04,133.93,28.68]
[1726155915907,50.96,134.0,133.9,10.02977687]
[1726155916308,28.68,134.05,133.91,28.68]
[1726155916912,1.0,134.06,134.01,3.358]
[1726155917294,28.68,134.14,133.95,3.74225572]
[1726155917295,28.68,134.09,133.96,28.68]
[1726155917498,50.96,134.09,134.02,3.3577]
[1726155917695,28.68,134.07,133.97,3.8201]
[1726155917906,28.68,134.07,134.01,3.358]
[1726155918104,28.68,134.07,133.97,3.8201]
[1726155918313,50.96,134.05,133.91,28.68]
[1726155918504,3.3574,134.04,133.91,32.5891]
[1726155919106,50.96,134.05,133.91,32.5891]
[1726155919412,50.96,134.03,133.91,3.9091]
[1726155919804,50.96,134.03,133.91,3.09592616]
[1726155920304,28.68,134.03,133.91,3.09592616]
[1726155920511,28.68,134.05,133.91,31.77592616]
[1726155920701,28.68,134.05,133.98,3.3587]
[1726155920902,28.68,134.05,133.94,32.43970149]
[1726155921216,28.68,134.07,133.94,28.68]
[1726155921515,22.28,134.06,133.95,3.71753731]
[1726155921904,22.28,134.06,133.99,3.3583]
[1726155922509,22.28,134.06,133.99,3.3584]
[1726155923010,22.28,134.06,133.95,3.68843283]
[1726155923310,0.8131,134.13,133.91,10.52492616]
[1726155923311,28.68,134.04,133.93,28.68]
[1726155923525,22.28,134.05,133.93,28.68]
[1726155924208,22.28,134.06,134.0,3.3583]
[1726155924414,22.28,134.06,133.96,3.64589552]
[1726155924612,22.28,134.06,133.94,1.9242]
[1726155925004,22.28,134.06,134.0,3.3583]
[1726155925206,22.28,134.06,133.94,5.5872597]
[1726155925712,25.637,134.06,133.99,3.3584]
[1726155925912,22.28,134.06,133.99,3.3584]
[1726155926616,3.3571,134.05,133.99,3.3584]
[1726155926817,22.28,134.06,133.98,3.3587]
[1726155927316,22.28,134.03,133.98,3.3587]
[1726155927616,22.28,134.03,133.97,3.359]
[1726155928008,25.6376,134.03,133.97,3.359]
[1726155928209,22.28,134.03,133.98,3.3588]
[1726155928608,28.68,134.04,133.96,3.3592]
[1726155928819,28.68,134.07,133.94,5.5872597]
[1726155929017,28.68,134.07,133.96,28.68]
[1726155929910,22.28,134.08,134.01,3.3579]
[1726155930106,22.28,134.08,133.96,28.68]
[1726155930712,3.357,134.06,133.96,28.68]
[1726155930914,50.96,134.07,133.94,5.5872597]
[1726155931218,54.3166,134.07,133.95,28.68]
[1726155931415,25.6366,134.07,133.95,28.68]
[1726155931723,25.6366,134.07,134.0,3.3581]
[1726155931909,3.357,134.06,134.0,3.3581]
[1726155932107,22.28,134.07,133.94,5.5872597]
[1726155932108,50.96,134.05,133.94,5.5872597]
[1726155932414,54.3183,134.01,133.91,3.09592616]
[1726155932614,28.68,134.01,133.91,3.09592616]
[1726155932917,28.68,134.03,133.91,31.77592616]
[1726155933510,28.68,134.03,133.98,3.3588]
[1726155933711,28.68,134.03,133.95,3.69842248]
[1726155933911,32.0378,134.03,133.98,3.3588]
[1726155934222,50.96,134.03,133.91,31.77592616]
[1726155934420,3.359,133.98,133.91,3.09592616]
[1726155934613,28.68,133.99,133.91,3.09592616]
[1726155936719,3.3596,133.95,133.9,13.39057687]
[1726155936923,3.3596,133.95,133.9,10.02977687]
[1726155937124,28.68,133.92,133.9,10.02977687]
[1726155937312,50.96,133.92,133.9,10.02977687]
[1726155937819,54.3205,133.92,133.9,10.02977687]
[1726155938011,32.0405,133.92,133.9,10.02977687]
[1726155938212,28.68,133.92,133.9,10.02977687]
[1726155938419,50.96,133.92,133.87,20.08948978]
[1726155938725,3.79368876,133.97,133.86,39.6627449]
[1726155939024,1.0,133.91,133.86,39.6627449]
[1726155939226,22.28,133.91,133.86,39.6627449]
[1726155939415,3.3609,133.9,133.86,39.6627449]
[1726155939612,22.28,133.91,133.86,39.6627449]
[1726155940216,57.36,133.87,133.83,9.08842247]
[1726155940422,25.6426,133.83,133.82,8.3741748]
[1726155940611,22.28,133.83,133.81,14.3538651]
[1726155941014,50.96,133.84,133.81,14.3538651]
[1726155942024,50.96,133.84,133.8,3.14361765]
[1726155942325,50.96,133.84,133.78,29.00374491]
[1726155942531,50.96,133.8,133.78,29.00374491]
[1726155942821,50.96,133.8,133.77,10.74017494]
[1726155943016,28.68,133.8,133.77,10.74017494]
[1726155943419,28.68,133.82,133.77,10.74017494]
[1726155944023,6.718,133.98,133.77,14.41037298]
[1726155944323,28.68,133.88,133.77,14.41037298]
[1726155944527,28.68,133.88,133.78,28.68]
[1726155944730,28.68,133.9,133.86,3.3618]
[1726155944929,28.68,133.88,133.77,14.41037298]
[1726155945125,50.96,133.88,133.77,14.41037298]
[1726155945321,28.68,133.88,133.78,28.68]
[1726155945922,28.68,133.88,133.77,14.41037298]
[1726155946531,3.3616,133.87,133.81,3.3629]
[1726155946722,50.96,133.88,133.77,14.41037298]
[1726155947122,28.68,133.88,133.78,1.8025]
[1726155947831,32.0416,133.88,133.78,1.8025]
[1726155948229,3.3616,133.87,133.81,3.3631]
[1726155948629,3.3616,133.87,133.78,1.8025]
[1726155949032,3.3616,133.87,133.81,3.3629]
[1726155949231,3.3616,133.87,133.78,1.8025]
[1726155949934,28.68,133.86,133.77,14.41037298]
[1726155950236,28.68,133.9,133.78,28.68]
[1726155950640,28.68,133.9,133.81,3.3629]
[1726155950830,32.45112008,133.94,133.77,14.41037298]
[1726155950831,28.68,133.87,133.77,14.41037298]
[1726155951232,22.28,133.86,133.77,14.41037298]
[1726155951841,22.28,133.86,133.79,3.3635]
[1726155952033,28.68,133.87,133.77,14.41037298]
[1726155952337,50.96,133.87,133.81,3.3629]
[1726155952934,3.362,133.86,133.8,3.3632]
[1726155953138,50.96,133.87,133.77,14.41037298]
[1726155953647,50.96,133.87,133.81,3.3629]
[1726155954039,50.96,133.87,133.77,14.41037298]
[1726155954040,28.68,133.87,133.77,14.41037298]
[1726155954238,28.68,133.87,133.82,3.3626]
[1726155954434,22.28,133.89,133.78,28.68]
[1726155954841,22.28,133.89,133.81,3.3629]
[1726155955051,22.28,133.89,133.78,28.68]
[1726155955256,3.3617,133.87,133.82,3.3628]
[1726155955550,22.28,133.89,133.78,28.68]
[1726155955944,3.3614,133.88,133.78,28.68]
[1726155956146,22.28,133.89,133.78,28.68]
[1726155956351,3.3617,133.87,133.82,3.3627]
[1726155957048,3.3617,133.87,133.78,28.68]
[1726155957049,3.3614,133.88,133.83,3.3626]
[1726155957649,3.3616,133.87,133.83,3.3626]
[1726155957849,22.28,133.89,133.78,28.68]
[1726155958148,22.28,133.89,133.84,3.3623]
[1726155958752,3.3614,133.88,133.83,3.3625]
[1726155959054,3.3614,133.88,133.79,3.7358]
[1726155959253,3.3617,133.87,133.79,3.7358]
[1726155960061,22.28,133.89,133.83,3.3624]
[1726155960062,3.3614,133.88,133.83,3.3624]
[1726155960259,22.28,133.89,133.79,3.7358]
[1726155960451,25.6412,133.89,133.84,3.3622]
[1726155960651,22.28,133.89,133.79,3.7358]
[1726155961456,50.96,133.88,133.79,3.7358]
[1726155961659,3.3617,133.87,133.83,3.3626]
[1726155962757,50.96,133.88,133.8,3.3632]
[1726155962955,50.96,133.85,133.79,3.7358]
[1726155963161,28.68,133.85,133.79,3.7358]
[1726155963361,28.68,133.85,133.81,3.3629]
[1726155963660,28.68,133.85,133.79,3.7358]
[1726155963863,32.0418,133.87,133.82,3.3628]
[1726155964065,28.68,133.87,133.79,3.7358]
[1726155964366,51.11,133.9,133.79,3.7358]
[1726155964550,51.11,133.9,133.85,3.3619]
[1726155964757,51.11,133.9,133.79,3.7358]
[1726155965259,51.11,133.9,133.84,3.3623]
[1726155965457,51.11,133.9,133.79,3.7358]
[1726155965667,22.43,133.91,133.81,28.68]
[1726155965859,25.7908,133.91,133.86,3.3617]
[1726155966061,22.43,133.91,133.86,3.3617]
[1726155966857,22.43,133.91,133.85,3.362]
[1726155967058,51.11,133.92,133.82,1.8071]
[1726155967451,51.11,133.9,133.82,1.8071]
[1726155967668,3.3617,133.87,133.82,1.8071]
[1726155967965,51.11,133.9,133.85,3.362]
[1726155968167,3.3609,133.9,133.84,3.76886631]
[1726155968358,51.11,133.92,133.82,1.8071]
[1726155968962,3.3607,133.91,133.82,1.8071]
[1726155969265,28.68,133.94,133.83,28.68]
[1726155969655,51.11,133.94,133.83,28.68]
[1726155969858,3.3604,133.92,133.83,28.68]
[1726155970460,3.3602,133.93,133.83,28.68]
[1726155970661,51.11,133.94,133.83,28.68]
[1726155970862,3.3602,133.93,133.88,3.3612]
[1726155971266,51.11,133.94,133.87,3.69191692]
[1726155971465,51.11,133.94,133.83,28.68]
[1726155972471,22.43,133.91,133.82,1.8071]
[1726155972665,3.3611,133.9,133.82,1.8071]
[1726155973058,51.11,133.92,133.82,1.8071]
[1726155973269,28.68,133.9,133.82,1.8071]
[1726155974767,51.11,133.9,133.79,3.7358]
[1726155974971,3.3623,133.85,133.79,3.7358]
[1726155975165,51.11,133.88,133.79,3.7358]
[1726155975560,3.3617,133.87,133.81,3.3629]
[1726155976065,51.11,133.88,133.79,3.7358]
[1726155976266,28.68,133.86,133.79,3.7358]
[1726155976966,22.43,133.93,133.79,3.7358]
[1726155976967,28.68,133.88,133.79,3.7358]
[1726155977377,28.68,133.9,133.79,32.4158]
[1726155977872,28.68,133.88,133.79,3.7358]
[1726155978269,28.68,133.86,133.79,3.7358]
[1726155979562,28.68,133.84,133.77,14.41037298]
[1726155979959,28.68,133.84,133.77,10.74017494]
[1726155980159,6.7202,133.93,133.77,10.74017494]
[1726155980160,28.68,133.82,133.77,10.74017494]
[1726155981164,3.3637,133.79,133.77,10.74017494]
[1726155981478,28.68,133.8,133.77,10.74017494]
[1726155981772,3.3643,133.77,133.75,6.33984058]
[1726155982173,28.68,133.77,133.75,6.33984058]
[1726155982764,28.68,133.77,133.74,18.23661125]
[1726155982969,28.68,133.77,133.73,1.92088994]
[1726155982970,28.68,133.75,133.73,1.92088994]
[1726155983360,32.0448,133.75,133.73,1.92088994]
[1726155983567,28.68,133.77,133.73,1.92088994]
[1726155983969,3.3644,133.76,133.73,1.92088994]
[1726155984165,28.68,133.77,133.73,1.92088994]
[1726155985073,28.68,133.8,133.73,1.92088994]
[1726155985371,28.68,133.82,133.73,1.92088994]
[1726155985871,3.3633,133.81,133.76,3.3643]
[1726155986074,28.68,133.82,133.76,3.3643]
[1726155986476,28.68,133.82,133.77,3.3641]
[1726155986680,28.68,133.82,133.75,3.79756298]
[1726155986877,28.68,133.82,133.74,1.8747]
[1726155987075,28.68,133.84,133.74,1.8747]
[1726155987584,28.68,133.84,133.74,30.5547]
[1726155989977,32.0425,133.84,133.74,30.5547]
[1726155990578,28.68,133.84,133.74,30.5547]
[1726155991074,32.0425,133.84,133.78,3.3637]
[1726155991267,22.43,133.93,133.74,30.5547]